bitfinex/quotes_SOLUSD_20220129
["timestamp","ask_amount","ask_price","bid_price","bid_amount"]
[1643453601642,33.38395836,97.135,97.087,6.0]
[1643453601842,33.38395836,97.135,97.088,0.25]
[1643453603243,33.38395836,97.135,97.081,0.25]
[1643453603647,33.38395836,97.135,97.085,6.0]
[1643453603847,33.38395836,97.135,97.086,0.25]
[1643453604047,23.4038,97.159,97.086,0.25]
[1643453604248,47.5701,97.217,97.114,2.95669142]
[1643453604648,47.5701,97.217,97.125,102.9]
[1643453604947,47.5701,97.217,97.126,61.79]
[1643453605148,47.5701,97.217,97.135,6.0]
[1643453605149,38.75701406,97.216,97.135,6.0]
[1643453605353,38.75701406,97.216,97.136,6.25]
[1643453605549,38.75701406,97.216,97.14,15.08]
[1643453605749,0.25,97.215,97.141,0.25]
[1643453605952,0.25,97.215,97.15,6.0]
[1643453606350,0.25,97.215,97.151,0.25]
[1643453606753,0.25,97.215,97.152,2.95669142]
[1643453607152,0.25,97.215,97.162,6.0]
[1643453607352,0.25,97.215,97.151,0.25]
[1643453608051,0.25,97.215,97.139,2.95669142]
[1643453608256,0.25,97.215,97.14,0.25]
[1643453609157,0.25,97.215,97.131,6.0]
[1643453609358,6.0,97.206,97.132,0.25]
[1643453609557,6.0,97.206,97.13,0.25]
[1643453609757,24.4518,97.205,97.13,0.25]
[1643453609957,24.4518,97.205,97.131,2.95669142]
[1643453610159,24.4518,97.205,97.139,6.0]
[1643453610359,41.97341082,97.194,97.11,23.5581]
[1643453610557,6.0,97.184,97.11,23.5581]
[1643453610757,0.25,97.183,97.111,0.25]
[1643453610961,6.25,97.183,97.111,0.25]
[1643453611159,6.25,97.183,97.1,18.39869142]
[1643453611875,6.25,97.183,97.11,6.0]
[1643453612075,6.25,97.183,97.1,18.39869142]
[1643453612275,6.25,97.183,97.101,0.25]
[1643453612875,37.45982234,97.179,97.114,2.95669142]
[1643453613077,37.45982234,97.179,97.124,6.0]
[1643453613277,37.45982234,97.179,97.125,0.25]
[1643453613480,37.45982234,97.179,97.125,3.20669142]
[1643453613678,37.45982234,97.179,97.126,2.95669142]
[1643453613883,37.45982234,97.179,97.127,0.25]
[1643453614078,0.25,97.178,97.126,2.95669142]
[1643453614378,6.0,97.169,97.111,6.0]
[1643453614578,6.0,97.169,97.11,2.95669142]
[1643453614579,6.0,97.169,97.112,0.25]
[1643453614780,0.25,97.168,97.112,0.25]
[1643453615177,24.9291,97.178,97.112,0.25]
[1643453615377,0.25,97.177,97.112,0.25]
[1643453615578,0.25,97.177,97.12,6.0]
[1643453615778,0.25,97.177,97.121,0.25]
[1643453616179,0.25,97.177,97.121,3.20669142]
[1643453616380,0.25,97.177,97.122,2.95669142]
[1643453616679,0.25,97.177,97.121,0.25]
[1643453617081,0.25,97.177,97.111,9.20669142]
[1643453617282,0.25,97.177,97.111,6.25]
[1643453617484,0.25,97.177,97.121,2.95669142]
[1643453617882,0.25,97.177,97.122,0.25]
[1643453619085,0.25,97.177,97.121,2.95669142]
[1643453619285,0.25,97.177,97.1,2.95669142]
[1643453619485,0.25,97.177,97.11,6.0]
[1643453619685,23.5772,97.177,97.101,0.25]
[1643453620886,23.5772,97.177,97.114,2.95669142]
[1643453621090,23.5772,97.177,97.124,6.0]
[1643453621289,23.5772,97.177,97.125,0.25]
[1643453622089,23.5772,97.177,97.1,15.442]
[1643453622290,23.5772,97.177,97.115,0.25]
[1643453623294,23.5772,97.177,97.116,2.95669142]
[1643453623494,23.3272,97.177,97.116,2.95669142]
[1643453623695,23.3272,97.177,97.117,0.25]
[1643453624093,6.0,97.167,97.117,3.20669142]
[1643453624897,0.25,97.166,97.117,3.20669142]
[1643453625093,23.3272,97.177,97.127,6.0]
[1643453625295,23.3272,97.177,97.128,0.25]
[1643453625497,15.442,97.21,97.128,0.25]
[1643453625700,15.08,97.23,97.128,3.20669142]
[1643453625895,15.08,97.23,97.129,25.73989142]
[1643453625896,47.9563,97.229,97.129,25.73989142]
[1643453626096,47.9563,97.229,97.139,6.0]
[1643453626305,47.9563,97.229,97.15,15.434]
[1643453626497,43.5129102,97.228,97.16,6.0]
[1643453626995,43.5129102,97.228,97.161,3.20669142]
[1643453627397,43.5129102,97.228,97.171,6.0]
[1643453627596,0.25,97.227,97.172,6.0]
[1643453627797,0.25,97.227,97.172,6.25]
[1643453628495,0.25,97.227,97.172,0.25]
[1643453628696,0.25,97.227,97.148,2.95669142]
[1643453628899,0.25,97.227,97.163,0.25]
[1643453629098,6.0,97.218,97.163,0.25]
[1643453629297,0.25,97.217,97.163,0.25]
[1643453629498,23.4295,97.217,97.163,0.25]
[1643453629898,23.4295,97.217,97.162,0.25]
[1643453630401,23.4295,97.217,97.143,6.0]
[1643453630627,23.4295,97.217,97.15,6.0]
[1643453630801,23.4295,97.217,97.151,0.25]
[1643453631601,23.4295,97.217,97.16,6.0]
[1643453631799,23.4295,97.217,97.161,0.25]
[1643453632502,23.4295,97.217,97.161,6.25]
[1643453633102,23.4295,97.217,97.161,0.25]
[1643453633303,23.4295,97.217,97.144,0.25]
[1643453634005,6.0,97.207,97.144,0.25]
[1643453634203,45.39388942,97.206,97.144,0.25]
[1643453634412,45.39388942,97.206,97.098,4.29324529]
[1643453634413,23.4742,97.205,97.098,4.29324529]
[1643453634608,6.0,97.195,97.108,6.0]
[1643453634809,0.25,97.194,97.108,6.0]
[1643453635409,0.25,97.194,97.114,6.0]
[1643453635810,0.25,97.194,97.114,8.95669142]
[1643453636110,45.52925052,97.189,97.144,1.42900082]
[1643453636312,0.25,97.188,97.144,1.42900082]
[1643453636515,6.0,97.179,97.145,1.42900082]
[1643453636712,6.0,97.179,97.146,1.42900082]
[1643453636916,0.25,97.178,97.145,1.42900082]
[1643453637913,0.25,97.178,97.146,1.42900082]
[1643453638332,0.25,97.178,97.115,2.95669142]
[1643453638533,0.25,97.178,97.109,2.95669142]
[1643453639036,6.25,97.178,97.109,2.95669142]
[1643453639434,23.9909,97.177,97.109,2.95669142]
[1643453639634,32.86702961,97.166,97.11,0.25]
[1643453639836,0.25,97.165,97.11,0.25]
[1643453640039,32.86702961,97.166,97.119,6.0]
[1643453640237,32.86702961,97.166,97.12,0.25]
[1643453641436,32.86702961,97.166,97.114,2.95669142]
[1643453641437,32.86702961,97.166,97.115,0.25]
[1643453642137,32.86702961,97.166,97.116,2.95669142]
[1643453642338,32.86702961,97.166,97.117,0.25]
[1643453642938,32.86702961,97.166,97.118,2.95669142]
[1643453643440,32.86702961,97.166,97.119,0.25]
[1643453643841,0.25,97.165,97.118,2.95669142]
[1643453644040,32.86702961,97.166,97.104,6.0]
[1643453644041,6.0,97.156,97.119,0.25]
[1643453644242,23.4629,97.165,97.119,0.25]
[1643453645243,23.4629,97.165,97.105,0.25]
[1643453647743,23.4629,97.165,97.104,6.0]
[1643453647943,0.25,97.164,97.104,6.0]
[1643453648145,6.0,97.155,97.104,6.0]
[1643453648344,0.25,97.154,97.104,6.0]
[1643453648545,0.25,97.154,97.1,6.0]
[1643453648744,0.25,97.154,97.092,6.0]
[1643453649044,25.0192,97.154,97.093,6.0]
[1643453650844,25.0192,97.154,97.094,0.25]
[1643453651046,6.0,97.144,97.094,0.25]
[1643453651244,35.26898036,97.143,97.094,0.25]
[1643453653849,35.26898036,97.143,97.114,2.95669142]
[1643453654052,35.26898036,97.143,97.1,2.95669142]
[1643453654250,35.26898036,97.143,97.101,0.25]
[1643453656351,0.25,97.142,97.1,6.0]
[1643453656651,35.26898036,97.143,97.1,6.0]
[1643453656851,0.25,97.142,97.1,6.0]
[1643453657055,35.26898036,97.143,97.1,6.0]
[1643453657652,35.26898036,97.143,97.101,0.25]
[1643453660660,24.551,97.178,97.114,2.95669142]
[1643453660963,0.25,97.177,97.115,0.25]
[1643453661156,23.2679,97.229,97.124,6.0]
[1643453661359,46.5033,97.229,97.125,0.25]
[1643453661556,35.62151936,97.228,97.126,6.0]
[1643453661755,35.62151936,97.228,97.13,15.08]
[1643453661955,35.62151936,97.228,97.135,6.0]
[1643453662157,35.62151936,97.228,97.14,6.0]
[1643453662353,35.62151936,97.228,97.141,24.5094]
[1643453662554,35.62151936,97.228,97.151,6.0]
[1643453662755,35.62151936,97.228,97.152,0.25]
[1643453663157,35.62151936,97.228,97.152,3.20669142]
[1643453663358,76.7199,97.303,97.153,2.95669142]
[1643453663560,48.5947,97.289,97.165,61.54]
[1643453663757,48.5947,97.289,97.171,164.44]
[1643453663959,15.08,97.32,97.175,164.44]
[1643453664257,45.4069,97.319,97.2,15.423]
[1643453664458,33.54174572,97.318,97.2,30.503]
[1643453664660,59.23296967,97.318,97.21,6.0]
[1643453664857,59.23296967,97.318,97.211,0.25]
[1643453665059,6.0,97.308,97.211,27.40176102]
[1643453665259,6.0,97.308,97.212,21.15176102]
[1643453665460,0.25,97.307,97.212,21.15176102]
[1643453665661,0.25,97.307,97.213,0.25]
[1643453665859,34.44836583,97.299,97.213,0.25]
[1643453666064,6.0,97.289,97.213,3.20669142]
[1643453666260,6.0,97.289,97.214,2.95669142]
[1643453666261,0.25,97.288,97.214,2.95669142]
[1643453666460,0.25,97.288,97.223,6.0]
[1643453666662,0.25,97.288,97.215,0.25]
[1643453666862,0.25,97.288,97.224,2.95669142]
[1643453667264,0.25,97.288,97.225,0.25]
[1643453667664,0.25,97.288,97.225,3.20669142]
[1643453669063,0.25,97.288,97.225,0.25]
[1643453669264,0.25,97.288,97.212,0.25]
[1643453669464,0.25,97.288,97.214,6.0]
[1643453669868,0.25,97.288,97.215,0.25]
[1643453670468,33.46503096,97.279,97.215,0.25]
[1643453670765,0.25,97.278,97.203,0.25]
[1643453670966,6.0,97.269,97.203,0.25]
[1643453671165,6.0,97.269,97.203,3.20669142]
[1643453671368,0.25,97.268,97.203,3.20669142]
[1643453674386,0.25,97.268,97.203,0.25]
[1643453674991,6.25,97.268,97.203,0.25]
[1643453676088,39.70710717,97.259,97.184,0.25]
[1643453676288,6.25,97.258,97.184,0.25]
[1643453676486,6.0,97.249,97.184,0.25]
[1643453676686,6.0,97.248,97.184,0.25]
[1643453677087,0.25,97.247,97.184,0.25]
[1643453678187,0.25,97.248,97.184,0.25]
[1643453679188,0.25,97.248,97.181,6.0]
[1643453679391,0.25,97.248,97.182,0.25]
[1643453679793,0.25,97.248,97.183,2.95669142]
[1643453680192,0.25,97.248,97.184,0.25]
[1643453681392,0.25,97.248,97.182,0.25]
[1643453681794,0.25,97.248,97.183,2.95669142]
[1643453681993,0.25,97.248,97.182,0.25]
[1643453682396,0.25,97.248,97.183,2.95669142]
[1643453682799,0.25,97.248,97.184,0.25]
[1643453684400,103.15,97.248,97.151,18.1950696]
[1643453684701,103.15,97.248,97.124,2.83173881]
[1643453684702,38.85822984,97.237,97.124,2.83173881]
[1643453684902,38.85822984,97.237,97.135,0.25]
[1643453684903,15.08,97.23,97.135,0.25]
[1643453685102,6.0,97.22,97.135,0.25]
[1643453685303,39.18377845,97.219,97.136,2.95669142]
[1643453685499,6.0,97.209,97.136,2.95669142]
[1643453685700,15.436,97.25,97.14,15.436]
[1643453685900,51.451,97.27,97.147,61.54]
[1643453686101,51.451,97.27,97.157,6.0]
[1643453686301,47.818,97.279,97.157,6.0]
[1643453686501,47.818,97.279,97.161,61.54]
[1643453686702,32.96133371,97.278,97.161,61.54]
[1643453686901,32.96133371,97.278,97.171,6.0]
[1643453687102,32.96133371,97.278,97.174,102.9]
[1643453687304,6.0,97.268,97.175,0.25]
[1643453687501,6.0,97.268,97.184,6.0]
[1643453687903,6.0,97.268,97.19,15.428]
[1643453688103,32.96133371,97.278,97.2,6.0]
[1643453688305,32.96133371,97.278,97.201,0.25]
[1643453688505,32.96133371,97.278,97.201,9.20669142]
[1643453688907,32.96133371,97.278,97.202,2.95669142]
[1643453689107,32.96133371,97.278,97.212,6.0]
[1643453689408,32.96133371,97.278,97.213,0.25]
[1643453689807,32.96133371,97.278,97.213,3.20669142]
[1643453690007,32.96133371,97.278,97.214,2.95669142]
[1643453690210,46.816,97.307,97.214,2.95669142]
[1643453690408,46.816,97.307,97.224,6.0]
[1643453690808,46.816,97.307,97.225,3.20669142]
[1643453691008,46.816,97.307,97.235,6.0]
[1643453691210,42.29978527,97.306,97.235,6.0]
[1643453691409,42.29978527,97.306,97.236,3.20669142]
[1643453691610,6.0,97.296,97.246,6.0]
[1643453691810,6.0,97.296,97.247,0.25]
[1643453692010,6.0,97.296,97.236,0.25]
[1643453692411,6.0,97.296,97.237,2.95669142]
[1643453692609,0.25,97.305,97.247,6.0]
[1643453692912,0.25,97.305,97.248,0.25]
[1643453693111,0.25,97.305,97.25,6.0]
[1643453693310,0.25,97.305,97.251,0.25]
[1643453693511,6.0,97.296,97.25,6.0]
[1643453693709,6.0,97.296,97.218,2.95669142]
[1643453693909,0.25,97.295,97.22,15.424]
[1643453694112,0.25,97.295,97.23,6.0]
[1643453694310,0.25,97.295,97.22,15.424]
[1643453694511,0.25,97.295,97.218,2.95669142]
[1643453694910,0.25,97.295,97.228,6.0]
[1643453695312,0.25,97.295,97.229,0.25]
[1643453696013,0.25,97.295,97.219,0.25]
[1643453696211,0.25,97.295,97.228,6.0]
[1643453696812,0.25,97.295,97.211,6.0]
[1643453697016,0.25,97.295,97.2,15.427]
[1643453697216,44.45859993,97.289,97.18,15.43]
[1643453697513,44.45859993,97.289,97.178,2.95669142]
[1643453697514,6.0,97.279,97.19,6.0]
[1643453697714,6.0,97.279,97.188,6.0]
[1643453697915,0.25,97.278,97.191,6.0]
[1643453698145,6.0,97.27,97.191,8.95669142]
[1643453698342,37.90752071,97.269,97.192,2.95669142]
[1643453698543,37.90752071,97.269,97.202,6.0]
[1643453699245,37.90752071,97.269,97.203,0.25]
[1643453699647,6.0,97.259,97.203,0.25]
[1643453699845,6.0,97.259,97.202,6.0]
[1643453699846,0.25,97.258,97.202,6.0]
[1643453700046,0.25,97.258,97.204,2.95669142]
[1643453700345,0.25,97.258,97.205,0.25]
[1643453701953,0.25,97.258,97.205,3.20669142]
[1643453702149,0.25,97.258,97.205,2.95669142]
[1643453702348,0.25,97.258,97.206,0.25]
[1643453703951,0.25,97.258,97.206,3.20669142]
[1643453704151,0.25,97.258,97.206,2.95669142]
[1643453704350,0.25,97.268,97.207,0.25]
[1643453704555,6.0,97.259,97.207,0.25]
[1643453704852,0.25,97.258,97.207,0.25]
[1643453705252,0.25,97.258,97.191,0.25]
[1643453705854,0.25,97.258,97.19,6.0]
[1643453706251,0.25,97.258,97.191,0.25]
[1643453706452,6.25,97.258,97.191,0.25]
[1643453706857,6.0,97.257,97.191,0.25]
[1643453707054,6.0,97.248,97.191,0.25]
[1643453707257,33.6506665,97.247,97.181,0.25]
[1643453707758,33.6506665,97.247,97.19,15.428]
[1643453707961,0.25,97.258,97.19,15.428]
[1643453708156,0.25,97.258,97.191,3.20669142]
[1643453708363,0.25,97.266,97.192,6.0]
[1643453708557,6.0,97.257,97.192,8.95669142]
[1643453708759,0.25,97.256,97.193,3.20669142]
[1643453708961,40.17637319,97.256,97.2,15.426]
[1643453709361,40.17637319,97.256,97.201,3.20669142]
[1643453709760,40.17637319,97.256,97.202,2.95669142]
[1643453710161,40.17637319,97.256,97.203,0.25]
[1643453710564,40.17637319,97.256,97.203,3.20669142]
[1643453714265,0.25,97.256,97.203,3.20669142]
[1643453714663,0.25,97.266,97.203,3.20669142]
[1643453715264,6.0,97.257,97.203,3.20669142]
[1643453715665,6.25,97.256,97.203,3.20669142]
[1643453716068,0.25,97.256,97.203,3.20669142]
[1643453716671,6.25,97.256,97.203,3.20669142]
[1643453717472,0.25,97.256,97.203,3.20669142]
[1643453717870,6.0,97.256,97.203,3.20669142]
[1643453719775,0.25,97.265,97.203,3.20669142]
[1643453721076,15.431,97.28,97.203,3.20669142]
[1643453721077,15.08,97.32,97.213,108.9]
[1643453721276,23.3555,97.323,97.214,3.36572239]
[1643453721578,23.3555,97.323,97.224,6.0]
[1643453721776,23.3555,97.323,97.225,0.25]
[1643453721974,41.40245931,97.322,97.226,3.11893171]
[1643453722176,15.425,97.32,97.226,3.11893171]
[1643453722376,6.0,97.312,97.236,6.0]
[1643453722575,6.0,97.31,97.236,6.0]
[1643453722777,40.19723771,97.3,97.202,2.83173881]
[1643453722975,40.19723771,97.3,97.216,0.25]
[1643453723179,102.9,97.289,97.216,0.25]
[1643453723375,0.25,97.288,97.216,0.25]
[1643453724177,0.25,97.288,97.211,0.25]
[1643453725206,6.0,97.279,97.211,0.25]
[1643453725406,46.94426518,97.278,97.211,0.25]
[1643453725606,46.94426518,97.278,97.21,6.0]
[1643453725906,46.94426518,97.278,97.195,2.95669142]
[1643453726106,24.3779,97.277,97.205,6.0]
[1643453726408,6.0,97.268,97.205,6.0]
[1643453726709,24.3779,97.277,97.205,6.0]
[1643453726907,24.3779,97.277,97.202,6.0]
[1643453727109,24.3779,97.277,97.206,8.95669142]
[1643453727407,24.3779,97.277,97.213,6.0]
[1643453727607,24.3779,97.277,97.207,2.95669142]
[1643453727907,0.25,97.276,97.207,2.95669142]
[1643453728909,0.25,97.276,97.217,6.0]
[1643453729211,0.25,97.277,97.217,6.0]
[1643453729409,6.0,97.268,97.218,0.25]
[1643453729609,0.25,97.277,97.208,0.25]
[1643453730010,0.25,97.277,97.217,6.0]
[1643453730409,0.25,97.277,97.218,0.25]
[1643453731510,6.0,97.268,97.218,0.25]
[1643453731714,6.0,97.268,97.208,0.25]
[1643453731910,0.25,97.267,97.208,0.25]
[1643453732511,6.0,97.268,97.208,0.25]
[1643453733314,6.0,97.258,97.208,0.25]
[1643453733513,24.5288,97.287,97.208,0.25]
[1643453733717,24.5288,97.287,97.209,2.95669142]
[1643453733915,6.0,97.277,97.21,6.0]
[1643453734115,6.0,97.277,97.219,6.0]
[1643453734317,6.0,97.277,97.22,0.25]
[1643453734514,46.20907563,97.276,97.22,0.25]
[1643453734713,46.20907563,97.276,97.22,3.20669142]
[1643453734914,6.0,97.266,97.22,3.20669142]
[1643453735516,46.20907563,97.276,97.22,0.25]
[1643453735717,6.0,97.266,97.22,0.25]
[1643453735917,22.9061,97.275,97.21,6.0]
[1643453736319,6.0,97.265,97.2,15.427]
[1643453736521,6.0,97.265,97.201,3.11384788]
[1643453736720,0.25,97.264,97.2,15.427]
[1643453737119,22.9061,97.275,97.21,6.0]
[1643453737519,22.9061,97.275,97.211,8.95669142]
[1643453737720,22.9061,97.275,97.211,3.20669142]
[1643453737923,6.0,97.265,97.212,2.95669142]
[1643453738120,6.0,97.265,97.21,6.0]
[1643453738321,6.0,97.265,97.2,15.427]
[1643453738521,22.9061,97.275,97.211,2.95669142]
[1643453738922,22.9061,97.275,97.221,6.0]
[1643453739322,46.20907563,97.276,97.222,0.25]
[1643453739723,46.20907563,97.276,97.223,2.95669142]
[1643453740122,46.20907563,97.276,97.233,6.0]
[1643453740325,46.20907563,97.276,97.234,0.25]
[1643453740522,46.20907563,97.276,97.224,0.25]
[1643453740923,6.0,97.266,97.224,0.25]
[1643453741527,6.0,97.266,97.209,0.25]
[1643453741724,6.0,97.266,97.21,3.11213985]
[1643453742127,6.0,97.266,97.211,0.25]
[1643453742326,46.20907563,97.276,97.22,6.0]
[1643453742725,46.20907563,97.276,97.221,0.25]
[1643453743150,46.20907563,97.276,97.222,6.0]
[1643453743327,46.20907563,97.276,97.223,0.25]
[1643453744731,46.20907563,97.276,97.222,6.0]
[1643453745029,46.20907563,97.276,97.224,8.95669142]
[1643453745428,46.20907563,97.276,97.225,3.20669142]
[1643453745829,46.20907563,97.276,97.235,6.0]
[1643453746030,46.20907563,97.276,97.226,2.95669142]
[1643453746231,46.20907563,97.276,97.227,0.25]
[1643453746632,46.20907563,97.276,97.228,2.95669142]
[1643453746831,46.20907563,97.276,97.229,0.25]
[1643453747031,6.0,97.266,97.229,0.25]
[1643453748033,6.0,97.265,97.209,0.25]
[1643453748436,6.0,97.265,97.208,2.95669142]
[1643453749841,22.8822,97.275,97.209,0.25]
[1643453750036,6.0,97.265,97.209,0.25]
[1643453750239,6.0,97.265,97.21,2.95669142]
[1643453750663,6.0,97.265,97.211,0.25]
[1643453751065,40.73988085,97.254,97.211,0.25]
[1643453752969,40.73988085,97.254,97.21,2.95669142]
[1643453753268,6.0,97.244,97.194,2.83173881]
[1643453753572,6.0,97.244,97.176,2.83173881]
[1643453753768,0.25,97.243,97.176,2.83173881]
[1643453753968,0.25,97.243,97.148,4.29324529]
[1643453753969,6.25,97.243,97.172,2.83173881]
[1643453754170,6.25,97.243,97.177,3.11359423]
[1643453754369,6.25,97.243,97.173,3.11359423]
[1643453754571,6.25,97.243,97.169,3.11359423]
[1643453754767,6.25,97.243,97.17,0.25]
[1643453754970,6.25,97.243,97.171,3.11359423]
[1643453755369,6.0,97.24,97.171,3.11359423]
[1643453755567,6.0,97.233,97.171,3.11359423]
[1643453755767,6.0,97.233,97.167,2.83173881]
[1643453755768,0.25,97.232,97.159,2.83173881]
[1643453755969,6.0,97.229,97.159,2.83173881]
[1643453756170,6.0,97.228,97.157,2.83173881]
[1643453756368,6.0,97.228,97.16,3.10869698]
[1643453756571,0.25,97.227,97.158,2.83173881]
[1643453756872,0.25,97.227,97.158,0.25]
[1643453757070,0.25,97.227,97.159,3.10869698]
[1643453757270,0.25,97.227,97.16,0.25]
[1643453757672,0.25,97.227,97.161,3.10869698]
[1643453757871,0.25,97.227,97.162,0.25]
[1643453758072,0.25,97.227,97.163,3.10869698]
[1643453758273,23.125,97.238,97.164,0.25]
[1643453758472,23.125,97.238,97.193,1.42256883]
[1643453758675,23.125,97.238,97.196,1.42256883]
[1643453758873,0.25,97.237,97.192,1.42256883]
[1643453759075,0.25,97.237,97.188,1.42256883]
[1643453759275,0.25,97.237,97.189,0.25]
[1643453759475,23.125,97.238,97.189,0.25]
[1643453759676,0.25,97.237,97.189,1.67256883]
[1643453759876,0.25,97.237,97.189,1.42256883]
[1643453760087,0.25,97.237,97.163,2.95669142]
[1643453760088,0.25,97.237,97.186,1.42256883]
[1643453760279,0.25,97.237,97.189,1.42256883]
[1643453760880,0.25,97.237,97.19,1.42256883]
[1643453761081,0.25,97.237,97.208,0.248001]
[1643453762084,23.125,97.238,97.208,0.248001]
[1643453763284,0.25,97.237,97.208,0.248001]
[1643453764489,6.0,97.228,97.208,0.248001]
[1643453764888,0.25,97.227,97.208,0.248001]
[1643453766690,0.25,97.227,97.208,0.008001]
[1643453767194,6.25,97.227,97.208,0.008001]
[1643453767594,0.25,97.227,97.208,0.008001]
[1643453767796,39.16588557,97.216,97.208,0.008001]
[1643453768294,0.25,97.215,97.208,0.008001]
[1643453769294,24.5471,97.215,97.208,0.008001]
[1643453772100,102.9,97.214,97.208,0.008001]
[1643453772300,0.25,97.213,97.208,0.008001]
[1643453773802,0.25,97.214,97.208,0.008001]
[1643453777326,22.9152,97.214,97.208,0.008001]
[1643453777826,2.95669142,97.213,97.208,0.008001]
[1643453778030,22.9152,97.214,97.208,0.008001]
[1643453778229,0.25,97.212,97.208,0.008001]
[1643453778429,22.9152,97.214,97.208,0.008001]
[1643453779629,102.9,97.213,97.208,0.008001]
[1643453779831,0.25,97.212,97.208,0.008001]
[1643453781032,0.25,97.213,97.208,0.008001]
[1643453786835,103.15,97.213,97.208,0.008001]
[1643453787634,0.25,97.213,97.208,0.008001]
[1643453787836,103.15,97.213,97.208,0.008001]
[1643453790038,118.4862,97.213,97.208,0.008001]
[1643453791841,2.95669142,97.212,97.208,0.008001]
[1643453792243,0.25,97.211,97.208,0.008001]
[1643453792641,3.20669142,97.211,97.208,0.008001]
[1643453796443,3.20669142,97.211,97.208,0.002201]
[1643453804481,15.3362,97.213,97.208,0.002201]
[1643453804682,6.06439994,97.22,97.208,0.002201]
[1643453805283,24.2693,97.262,97.208,0.002201]
[1643453805883,24.2693,97.262,97.214,1.42256883]
[1643453806288,24.2693,97.262,97.215,1.42256883]
[1643453806485,6.0,97.252,97.208,0.002201]
[1643453807085,6.25,97.251,97.208,0.002201]
[1643453807489,24.2269,97.25,97.208,0.002201]
[1643453807887,6.0,97.24,97.208,0.002201]
[1643453808286,0.25,97.239,97.208,0.002201]
[1643453819200,21.438,97.24,97.208,0.002201]
[1643453820299,6.0,97.24,97.208,0.002201]
[1643453820700,0.25,97.239,97.208,0.002201]
[1643453823503,21.437,97.24,97.208,0.002201]
[1643453823504,6.0,97.24,97.208,0.002201]
[1643453823702,23.4293,97.277,97.208,0.002201]
[1643453823903,6.0,97.257,97.208,0.002201]
[1643453824402,44.95210333,97.256,97.208,0.002201]
[1643453824603,6.0,97.246,97.208,0.002201]
[1643453824905,23.5989,97.245,97.208,0.002201]
[1643453825905,6.0,97.246,97.208,0.002201]
[1643453826104,6.0,97.24,97.208,0.002201]
[1643453827306,0.25,97.239,97.208,0.002201]
[1643453827509,6.25,97.239,97.208,0.002201]
[1643453828406,102.9,97.238,97.208,0.002201]
[1643453828605,6.25,97.239,97.208,0.002201]
[1643453828606,6.0,97.228,97.208,0.002201]
[1643453828810,0.25,97.227,97.208,0.002201]
[1643453829007,6.25,97.227,97.208,0.002201]
[1643453829306,34.35481743,97.226,97.208,0.002201]
[1643453829507,6.0,97.216,97.208,0.002201]
[1643453829907,6.25,97.215,97.208,0.002201]
[1643453831111,102.9,97.214,97.208,0.002201]